[Event "Championnat du monde jeunes U10"]
[Date "2024.11.26"]
[White "Deepak Ambattu, Rithvik"]
[Black "Cao, Frank Zhongtian"]
[WhiteElo "2063"]
[BlackElo "1793"]
[Round "11.12"]
[Result "1/2-1/2"]
[TimeControl "5400+30"]

1. e4 {[%clk 1:29:33]} 1... c5 {[%clk 1:30:54]} 2. Nf3 {[%clk 1:29:44]} 2... d6
{[%clk 1:31:18]} 3. d4 {[%clk 1:30:11]} 3... cxd4 4. Nxd4 {[%clk 1:30:39]} 4...
Nf6 {[%clk 1:32:05]} 5. Nc3 {[%clk 1:31:04]} 5... a6 {[%clk 1:32:29]} 6. Be2
{[%clk 1:31:14]} 6... e5 {[%clk 1:32:50]} 7. Nb3 {[%clk 1:30:56]} 7... Be7
{[%clk 1:33:11]} 8. Be3 {[%clk 1:31:19]} 8... Be6 {[%clk 1:33:31]} 9. Nd5 {[%clk
1:31:39]} 9... Nbd7 {[%clk 1:33:52]} 10. Qd3 {[%clk 1:32:05]} 10... O-O {[%clk
1:34:11]} 11. a4 {[%clk 1:31:12]} 11... Bxd5 {[%clk 1:34:34]} 12. exd5 {[%clk
1:31:40]} 12... Rc8 {[%clk 1:34:53]} 13. a5 {[%clk 1:28:36]} 13... Ne8 {[%clk
1:29:04]} 14. O-O {[%clk 1:25:52]} 14... g6 {[%clk 1:25:30]} 15. Ra4 {[%clk
1:16:41]} 15... Ng7 {[%clk 1:12:29]} 16. Rb4 {[%clk 1:12:46]} 16... Qc7 {[%clk
1:07:25]} 17. c4 {[%clk 1:05:39]} 17... Nf5 {[%clk 1:06:41]} 18. Bb6 {[%clk
0:55:02]} 18... Nxb6 {[%clk 1:02:15]} 19. axb6 {[%clk 0:55:02]} 19... Qd7 {[%clk
0:47:36]} 20. Bg4 {[%clk 0:54:57]} 20... Rfe8 {[%clk 0:45:31]} 21. Nd2 {[%clk
0:49:25]} 21... Bd8 {[%clk 0:41:33]} 22. Re1 {[%clk 0:42:28]} 22... Kh8 {[%clk
0:36:46]} 23. Ne4 {[%clk 0:39:43]} 23... h5 {[%clk 0:35:02]} 24. Qh3 {[%clk
0:36:35]} 24... Kg7 {[%clk 0:31:59]} 25. Bxf5 {[%clk 0:35:47]} 25... gxf5 {[%clk
0:29:49]} 26. Ng3 {[%clk 0:33:22]} 26... Rh8 {[%clk 0:26:45]} 27. Nxf5+ {[%clk
0:25:46]} 27... Kf8 {[%clk 0:15:27]} 28. Ra1 {[%clk 0:16:44]} 28... h4 {[%clk
0:10:33]} 29. Qg4 {[%clk 0:07:42]} 29... Rh7 {[%clk 0:09:03]} 30. h3 {[%clk
0:07:26]} 30... Rc5 {[%clk 0:07:18]} 31. Ne3 {[%clk 0:05:25]} 31... Qxg4 {[%clk
0:07:22]} 32. hxg4 {[%clk 0:05:36]} 32... Ke7 {[%clk 0:03:39]} 33. Rc1 {[%clk
0:00:35]} 33... Kd7 {[%clk 0:03:46]} 34. Nf5 {[%clk 0:00:45]} 34... Rh8 {[%clk
0:03:04]} 35. Kh2 {[%clk 0:00:31]} 35... Bg5 {[%clk 0:02:31]} 36. Rc2 {[%clk
0:00:31]} 36... Rhc8 {[%clk 0:01:51]} 37. g3 {[%clk 0:00:40]} 37... hxg3+ {[%clk
0:02:11]} 38. Nxg3 {[%clk 0:00:44]} 38... Rxd5 {[%clk 0:01:41]} 39. Ne4 {[%clk
0:00:37]} 39... Bf4+ {[%clk 0:01:54]} 40. Kg2 {[%clk 0:00:56]} 40... Rd4 {[%clk
0:01:47]} 41. Nf6+ {[%clk 0:01:08]} 41... Ke7 {[%clk 0:01:51]} 42. Nh5 {[%clk
0:01:27]} 42... d5 {[%clk 0:01:27]} 43. b3 {[%clk 0:01:31]} 43... dxc4 {[%clk
0:01:15]} 44. Rbxc4 {[%clk 0:00:43]} 44... Rcxc4 {[%clk 0:01:11]} 45. bxc4
{[%clk 0:01:05]} 45... Kd6 {[%clk 0:00:42]} 46. c5+ {[%clk 0:00:50]} 46... Kc6
{[%clk 0:00:48]} 47. Nxf4 {[%clk 0:01:04]} 47... Rxf4 {[%clk 0:01:00]} 48. Kg3
{[%clk 0:00:32]} 48... Rd4 {[%clk 0:01:14]} 49. g5 {[%clk 0:00:37]} 49... Rd5
{[%clk 0:01:22]} 50. Kg4 {[%clk 0:00:36]} 50... Rxc5 {[%clk 0:01:04]} 51. Re2
{[%clk 0:00:47]} 51... Kxb6 {[%clk 0:01:03]} 52. Kf5 {[%clk 0:01:13]} 52... Rc3
{[%clk 0:00:47]} 53. Kxe5 {[%clk 0:01:27]} 53... a5 {[%clk 0:00:47]} 54. f4
{[%clk 0:01:48]} 54... a4 {[%clk 0:00:36]} 55. f5 {[%clk 0:00:45]} 55... Ka5
{[%clk 0:00:39]} 56. Kd4 {[%clk 0:00:33]} 56... Rg3 {[%clk 0:00:40]} 57. Re7
{[%clk 0:00:34]} 57... Rxg5 {[%clk 0:00:46]} 58. Rxb7 {[%clk 0:00:33]} 58...
Rxf5 {[%clk 0:01:05]} 59. Kc4 {[%clk 0:01:02]} 59... Ka6 {[%clk 0:01:08]} 60.
Rb8 {[%clk 0:01:06]} 60... Ka7 {[%clk 0:01:08]} 61. Rb1 {[%clk 0:01:00]} 61...
Ra5 {[%clk 0:00:52]} 62. Kb4 {[%clk 0:01:01]} 62... Ra6 {[%clk 0:01:03]} 63. Ka3
{[%clk 0:00:44]} 63... f6 {[%clk 0:00:48]} 64. Rb4 {[%clk 0:00:34]} 64... f5
{[%clk 0:00:55]} 65. Rb5 {[%clk 0:00:43]} 65... Rf6 {[%clk 0:00:59]} 66. Kxa4
{[%clk 0:00:50]} 66... f4 {[%clk 0:01:20]} 67. Rh5 {[%clk 0:00:45]} 67... f3
{[%clk 0:01:33]} 68. Rh1 {[%clk 0:01:14]} 68... f2 {[%clk 0:01:37]} 69. Rf1
{[%clk 0:01:41]} 69... Kb6 {[%clk 0:01:42]} 70. Kb4 {[%clk 0:02:07]} 70... Rf4+
{[%clk 0:02:00]} 71. Kc3 {[%clk 0:02:29]} 71... Kc5 {[%clk 0:02:12]} 72. Kd3
{[%clk 0:02:53]} 72... Kd5 {[%clk 0:02:33]} 73. Ke3 1/2-1/2

[Variant "Standard"]
[Site "Europe Echecs"]

[Event "Championnat du monde jeunes U10"]
[Date "2024.11.26"]
[White "Qian, Qipeng"]
[Black "Xia, Joshua"]
[WhiteElo "1641"]
[BlackElo "2052"]
[Round "11.13"]
[Result "0-1"]
[TimeControl "5400+30"]

1. d4 {[%clk 1:30:47]} 1... Nf6 {[%clk 1:30:56]} 2. c4 {[%clk 1:30:15]} 2... g6
{[%clk 1:31:19]} 3. Nc3 {[%clk 1:29:49]} 3... d5 {[%clk 1:31:44]} 4. Nf3 {[%clk
1:30:05]} 4... Bg7 {[%clk 1:32:06]} 5. h4 {[%clk 1:30:17]} 5... c5 {[%clk
1:32:18]} 6. dxc5 {[%clk 1:30:42]} 6... Be6 {[%clk 1:32:43]} 7. Nd4 {[%clk
1:24:22]} 7... Nc6 {[%clk 1:32:59]} 8. Nxc6 {[%clk 1:18:29]} 8... bxc6 {[%clk
1:33:16]} 9. cxd5 {[%clk 1:18:00]} 9... Nxd5 {[%clk 1:28:01]} 10. Nxd5 {[%clk
1:18:12]} 10... Bxd5 {[%clk 1:26:46]} 11. Qc2 {[%clk 1:16:51]} 11... Rb8 {[%clk
1:12:24]} 12. e4 {[%clk 1:11:49]} 12... Be6 {[%clk 1:10:06]} 13. Bd3 {[%clk
1:07:15]} 13... O-O {[%clk 1:03:06]} 14. O-O {[%clk 1:04:05]} 14... Bd4 {[%clk
0:58:30]} 15. Kh1 {[%clk 0:59:32]} 15... Qc7 {[%clk 0:53:08]} 16. Be2 {[%clk
0:27:31]} 16... Rfd8 {[%clk 0:47:19]} 17. f4 {[%clk 0:26:51]} 17... a5 {[%clk
0:40:10]} 18. g4 {[%clk 0:21:57]} 18... Kh8 {[%clk 0:36:33]} 19. Rd1 {[%clk
0:16:25]} 19... Rb4 {[%clk 0:30:05]} 20. Qd2 {[%clk 0:14:06]} 20... f5 {[%clk
0:27:34]} 21. b3 {[%clk 0:08:29]} 21... fxe4 {[%clk 0:23:46]} 22. Bb2 {[%clk
0:08:32]} 22... e3 {[%clk 0:21:26]} 23. Bxd4+ {[%clk 0:08:01]} 23... Rdxd4
{[%clk 0:19:08]} 24. Qxe3 {[%clk 0:07:55]} 24... Bd5+ {[%clk 0:19:46]} 25. Bf3
{[%clk 0:06:26]} 25... Bxf3+ {[%clk 0:16:41]} 26. Qxf3 {[%clk 0:06:54]} 26...
Rxf4 {[%clk 0:16:07]} 27. Qc3+ {[%clk 0:06:18]} 27... e5 {[%clk 0:16:22]} 28.
Re1 {[%clk 0:06:04]} 28... Rbd4 {[%clk 0:16:09]} 29. Qe3 {[%clk 0:05:38]} 29...
Rxg4 {[%clk 0:14:00]} 30. Qxe5+ {[%clk 0:06:05]} 30... Qxe5 {[%clk 0:14:24]} 31.
Rxe5 {[%clk 0:06:35]} 31... Rxh4+ {[%clk 0:14:07]} 32. Kg2 {[%clk 0:06:38]}
32... Rhe4 {[%clk 0:12:59]} 33. Rxe4 {[%clk 0:06:02]} 33... Rxe4 {[%clk
0:13:18]} 34. a3 {[%clk 0:06:21]} 34... Re2+ {[%clk 0:13:15]} 35. Kf3 {[%clk
0:06:38]} 35... Rb2 {[%clk 0:13:13]} 36. b4 {[%clk 0:07:06]} 36... Kg7 {[%clk
0:12:11]} 37. Re1 {[%clk 0:04:04]} 37... axb4 {[%clk 0:11:30]} 38. axb4 Kf6
{[%clk 0:11:22]} 39. Re8 {[%clk 0:04:56]} 39... Rb3+ {[%clk 0:11:28]} 40. Kg2
{[%clk 0:05:24]} 40... Rxb4 {[%clk 0:11:46]} 41. Rc8 {[%clk 0:05:52]} 41... Rc4
{[%clk 0:11:55]} 42. Rxc6+ {[%clk 0:06:17]} 42... Kg5 {[%clk 0:12:18]} 43. Rc7
{[%clk 0:06:27]} 43... h5 {[%clk 0:12:19]} 44. c6 {[%clk 0:06:56]} 44... h4
{[%clk 0:12:22]} 45. Rc8 {[%clk 0:07:24]} 45... Kg4 {[%clk 0:12:15]} 46. c7
{[%clk 0:07:52]} 46... h3+ {[%clk 0:12:29]} 47. Kf2 {[%clk 0:07:46]} 47... Rc2+
{[%clk 0:12:28]} 48. Ke3 {[%clk 0:08:05]} 48... h2 {[%clk 0:10:38]} 49. Rh8
{[%clk 0:08:33]} 49... Kg3 {[%clk 0:10:43]} 50. Rh7 {[%clk 0:09:01]} 50... Rxc7
{[%clk 0:10:58]} 51. Rxc7 {[%clk 0:09:27]} 51... h1=Q {[%clk 0:11:20]} 52. Rg7
{[%clk 0:09:51]} 52... Qe1+ {[%clk 0:11:42]} 53. Kd3 {[%clk 0:10:18]} 53... Qe6
{[%clk 0:12:00]} 54. Rh7 {[%clk 0:10:43]} 54... g5 {[%clk 0:12:25]} 55. Rg7
{[%clk 0:11:10]} 55... g4 {[%clk 0:12:42]} 56. Kc2 {[%clk 0:11:34]} 56... Qc4+
{[%clk 0:13:06]} 57. Kd2 {[%clk 0:11:56]} 57... Qd4+ {[%clk 0:13:32]} 58. Kc2
{[%clk 0:12:23]} 58... Qxg7 {[%clk 0:13:56]} 59. Kd3 {[%clk 0:12:52]} 59... Kf3
{[%clk 0:14:20]} 60. Kc4 {[%clk 0:13:18]} 60... g3 {[%clk 0:14:47]} 61. Kd5
{[%clk 0:13:42]} 61... g2 {[%clk 0:15:06]} 62. Kc5 {[%clk 0:13:28]} 62... g1=Q+
{[%clk 0:15:28]} 63. Kd5 {[%clk 0:13:56]} 63... Q1d4+ {[%clk 0:15:49]} 64. Kc6
{[%clk 0:14:21]} 64... Qgd7# {[%clk 0:16:15]} 0-1

[Variant "Standard"]
[Site "Europe Echecs"]

[Event "Championnat du monde jeunes U10"]
[Date "2024.11.26"]
[White "Fuentes de Nova, Sebastian"]
[Black "Li, Weilong"]
[WhiteElo "1929"]
[BlackElo "1735"]
[Round "11.14"]
[Result "0-1"]
[TimeControl "5400+30"]

1. d4 {[%clk 1:30:31]} 1... Nf6 {[%clk 1:30:44]} 2. c4 {[%clk 1:30:30]} 2... e6
{[%clk 1:31:09]} 3. Nc3 {[%clk 1:27:49]} 3... Bb4 {[%clk 1:30:33]} 4. Qc2 {[%clk
1:28:03]} 4... d5 {[%clk 1:30:57]} 5. cxd5 {[%clk 1:24:50]} 5... Nxd5 {[%clk
1:22:06]} 6. Nf3 {[%clk 1:24:50]} 6... c5 {[%clk 1:20:20]} 7. Bd2 {[%clk
1:21:40]} 7... cxd4 {[%clk 1:19:33]} 8. Nxd5 {[%clk 1:21:35]} 8... Bxd2+ {[%clk
1:19:52]} 9. Qxd2 {[%clk 1:15:47]} 9... Qxd5 {[%clk 1:19:56]} 10. Qxd4 {[%clk
1:16:05]} 10... Qa5+ {[%clk 1:18:45]} 11. b4 {[%clk 1:15:03]} 11... Qa4 {[%clk
1:18:28]} 12. Qxg7 {[%clk 1:00:22]} 12... Qxb4+ {[%clk 1:18:51]} 13. Nd2 {[%clk
1:00:40]} 13... Qf8 {[%clk 1:15:08]} 14. Qxf8+ {[%clk 1:00:41]} 14... Rxf8
{[%clk 1:15:24]} 15. g3 {[%clk 1:00:57]} 15... Bd7 {[%clk 1:15:27]} 16. Bg2
{[%clk 1:00:33]} 16... Bc6 {[%clk 1:15:40]} 17. O-O {[%clk 1:00:57]} 17... Bxg2
{[%clk 1:15:53]} 18. Kxg2 {[%clk 1:01:21]} 18... Nc6 {[%clk 1:16:19]} 19. Rab1
{[%clk 1:01:34]} 19... b6 {[%clk 1:16:33]} 20. Rfc1 {[%clk 1:01:54]} 20... Rc8
{[%clk 1:16:59]} 21. Ne4 {[%clk 1:02:13]} 21... Ke7 {[%clk 1:17:22]} 22. Rd1
{[%clk 0:57:56]} 22... f5 {[%clk 1:08:05]} 23. Nd6 {[%clk 0:56:52]} 23... Rcd8
{[%clk 1:06:19]} 24. Nb5 {[%clk 0:56:32]} 24... a6 {[%clk 1:06:25]} 25. Nc7
{[%clk 0:56:05]} 25... Rxd1 {[%clk 1:06:49]} 26. Rxd1 {[%clk 0:56:01]} 26... Nb8
{[%clk 1:07:04]} 27. Rc1 {[%clk 0:50:46]} 27... Kd6 {[%clk 1:06:00]} 28. Kh3
{[%clk 0:46:46]} 28... b5 {[%clk 0:57:57]} 29. Kh4 {[%clk 0:41:15]} 29... Kd7
{[%clk 0:58:09]} 30. Na8 {[%clk 0:34:38]} 30... Nc6 {[%clk 0:58:20]} 31. Rd1+
{[%clk 0:34:53]} 31... Kc8 {[%clk 0:57:59]} 32. Kg5 {[%clk 0:32:42]} 32... Kb7
{[%clk 0:58:16]} 33. Kh6 {[%clk 0:32:59]} 33... Rxa8 {[%clk 0:58:37]} 34. Kxh7
{[%clk 0:33:12]} 34... Kc7 {[%clk 0:55:53]} 35. h4 {[%clk 0:32:57]} 35... Rd8
{[%clk 0:55:43]} 36. Rxd8 {[%clk 0:18:08]} 36... Kxd8 {[%clk 0:55:49]} 37. Kg7
{[%clk 0:18:06]} 37... Ke7 {[%clk 0:56:14]} 38. Kg6 {[%clk 0:17:15]} 38... Ne5+
{[%clk 0:56:22]} 39. Kg5 {[%clk 0:17:38]} 39... b4 {[%clk 0:56:37]} 40. Kf4
{[%clk 0:16:28]} 40... Kf6 {[%clk 0:56:22]} 41. Ke3 {[%clk 0:16:45]} 41... Ng4+
{[%clk 0:56:47]} 42. Kd4 {[%clk 0:17:13]} 42... Nxf2 {[%clk 0:57:12]} 43. Kc4
{[%clk 0:17:27]} 43... a5 {[%clk 0:57:39]} 44. Kb5 {[%clk 0:17:48]} 44... Ne4
{[%clk 0:58:05]} 45. Kxa5 {[%clk 0:17:43]} 45... Nc3 {[%clk 0:58:31]} 46. Kxb4
{[%clk 0:17:55]} 46... Nxa2+ {[%clk 0:58:58]} 47. Kc4 {[%clk 0:17:23]} 47... Nc1
{[%clk 0:59:24]} 48. e4 {[%clk 0:17:24]} 48... fxe4 {[%clk 0:59:43]} 49. Kd4
{[%clk 0:17:32]} 49... Ne2+ {[%clk 1:00:08]} 50. Kxe4 {[%clk 0:17:37]} 50...
Nxg3+ {[%clk 1:00:32]} 51. Kf3 {[%clk 0:17:46]} 51... Nh5 {[%clk 1:00:56]} 52.
Kg4 {[%clk 0:17:56]} 52... Kg6 {[%clk 1:01:23]} 53. Kf3 {[%clk 0:18:00]} 53...
Kf5 {[%clk 1:01:46]} 54. Ke3 {[%clk 0:18:08]} 54... e5 {[%clk 1:02:06]} 55. Kf3
{[%clk 0:18:33]} 55... e4+ {[%clk 1:02:34]} 56. Ke3 {[%clk 0:18:38]} 56... Ke5
{[%clk 1:02:59]} 57. Ke2 {[%clk 0:19:00]} 57... Kf4 {[%clk 1:03:26]} 58. Kf2
{[%clk 0:19:21]} 58... e3+ {[%clk 1:03:51]} 59. Ke2 {[%clk 0:18:52]} 59... Ke4
{[%clk 1:03:53]} 60. Ke1 {[%clk 0:18:57]} 60... Kf3 {[%clk 1:04:20]} 61. Kf1
{[%clk 0:19:15]} 61... e2+ {[%clk 1:04:10]} 62. Ke1 {[%clk 0:19:16]} 62... Nf4
{[%clk 1:04:36]} 0-1

[Variant "Standard"]
[Site "Europe Echecs"]

[Event "Championnat du monde jeunes U10"]
[Date "2024.11.26"]
[White "Larion, Iustin"]
[Black "Aitmukhanov, Arsen"]
[WhiteElo "1925"]
[BlackElo "1579"]
[Round "11.15"]
[Result "1-0"]
[TimeControl "5400+30"]

1. e4 {[%clk 1:30:54]} 1... c5 {[%clk 1:30:54]} 2. b3 {[%clk 1:31:00]} 2... Nc6
{[%clk 1:30:58]} 3. Bb2 {[%clk 1:31:23]} 3... d6 {[%clk 1:31:08]} 4. Bb5 {[%clk
1:31:40]} 4... Nf6 {[%clk 1:31:11]} 5. Bxc6+ {[%clk 1:28:08]} 5... bxc6 {[%clk
1:31:35]} 6. d3 {[%clk 1:28:29]} 6... g6 {[%clk 1:31:30]} 7. Ne2 {[%clk
1:28:03]} 7... Bg7 {[%clk 1:31:51]} 8. O-O {[%clk 1:27:52]} 8... O-O {[%clk
1:32:15]} 9. Nd2 {[%clk 1:18:52]} 9... e5 {[%clk 1:30:52]} 10. Qe1 {[%clk
1:18:59]} 10... Nd7 {[%clk 1:23:15]} 11. f4 {[%clk 1:12:47]} 11... d5 {[%clk
1:22:51]} 12. Ng3 {[%clk 1:05:01]} 12... d4 {[%clk 1:12:23]} 13. f5 {[%clk
1:04:44]} 13... h5 {[%clk 1:10:47]} 14. Qe2 {[%clk 0:53:37]} 14... Nf6 {[%clk
1:06:12]} 15. Nc4 {[%clk 0:49:03]} 15... h4 {[%clk 1:01:43]} 16. Nh1 {[%clk
0:49:28]} 16... Re8 {[%clk 0:59:00]} 17. fxg6 {[%clk 0:46:03]} 17... fxg6 {[%clk
0:59:25]} 18. Bc1 {[%clk 0:46:11]} 18... Bg4 {[%clk 0:54:26]} 19. Qf2 {[%clk
0:43:08]} 19... Nh5 {[%clk 0:52:53]} 20. h3 {[%clk 0:37:56]} 20... Be6 {[%clk
0:53:10]} 21. Bd2 {[%clk 0:37:50]} 21... Rf8 {[%clk 0:52:39]} 22. Qe2 {[%clk
0:38:07]} 22... Nf4 {[%clk 0:52:35]} 23. Bxf4 {[%clk 0:38:02]} 23... exf4 {[%clk
0:52:53]} 24. Rf3 {[%clk 0:37:32]} 24... g5 {[%clk 0:53:00]} 25. Nf2 {[%clk
0:35:08]} 25... Qd7 {[%clk 0:53:01]} 26. Rf1 {[%clk 0:34:36]} 26... Rf7 {[%clk
0:44:07]} 27. Re1 {[%clk 0:32:52]} 27... Re8 {[%clk 0:41:03]} 28. Nd2 {[%clk
0:33:05]} 28... Bh8 {[%clk 0:38:16]} 29. Nf1 {[%clk 0:33:21]} 29... g4 {[%clk
0:36:33]} 30. hxg4 {[%clk 0:33:24]} 30... Bxg4 {[%clk 0:36:50]} 31. Nxg4 {[%clk
0:33:41]} 31... Qxg4 {[%clk 0:37:15]} 32. Nh2 {[%clk 0:33:43]} 32... Qg6 {[%clk
0:37:11]} 33. Rh3 {[%clk 0:29:31]} 33... f3 {[%clk 0:33:01]} 34. Nxf3 {[%clk
0:28:09]} 34... Be5 {[%clk 0:29:38]} 35. Nxh4 {[%clk 0:25:40]} 35... Qg5 {[%clk
0:28:43]} 36. Nf3 {[%clk 0:25:31]} 36... Qg6 {[%clk 0:29:09]} 37. Nxe5 {[%clk
0:23:06]} 37... Rxe5 {[%clk 0:29:33]} 38. Rf1 {[%clk 0:22:44]} 38... Rg7 {[%clk
0:29:49]} 39. Qf3 {[%clk 0:22:54]} 39... Re8 {[%clk 0:28:02]} 40. Rf2 {[%clk
0:21:06]} 40... Qg5 {[%clk 0:27:46]} 41. Qh5 {[%clk 0:20:43]} 41... Qxh5 {[%clk
0:28:11]} 42. Rxh5 {[%clk 0:21:09]} 42... c4 {[%clk 0:28:34]} 43. Kh2 {[%clk
0:19:49]} 43... c3 {[%clk 0:28:20]} 44. Rf6 {[%clk 0:19:42]} 44... Ree7 {[%clk
0:28:25]} 45. Rxc6 {[%clk 0:19:29]} 45... Rgf7 {[%clk 0:28:45]} 46. Rg6+ {[%clk
0:19:41]} 46... Kf8 {[%clk 0:29:10]} 47. Rh8# {[%clk 0:20:06]} 1-0

[Variant "Standard"]
[Site "Europe Echecs"]

[Event "Championnat du monde jeunes U10"]
[Date "2024.11.26"]
[White "Liu, Liam"]
[Black "Andre, Tomas"]
[WhiteElo "1783"]
[BlackElo "1928"]
[Round "11.16"]
[Result "0-1"]
[TimeControl "5400+30"]

1. e4 {[%clk 1:30:51]} 1... c5 {[%clk 1:31:00]} 2. Nf3 {[%clk 1:31:04]} 2... Nc6
{[%clk 1:31:20]} 3. c3 {[%clk 1:31:28]} 3... Nf6 {[%clk 1:31:13]} 4. e5 {[%clk
1:31:53]} 4... Nd5 {[%clk 1:31:36]} 5. d4 {[%clk 1:32:17]} 5... d6 {[%clk
1:30:56]} 6. exd6 {[%clk 1:27:50]} 6... Qxd6 {[%clk 1:30:23]} 7. dxc5 {[%clk
1:27:27]} 7... Qxc5 {[%clk 1:30:30]} 8. Be2 {[%clk 1:27:13]} 8... Bf5 {[%clk
1:30:30]} 9. b4 {[%clk 1:23:21]} 9... Qd6 {[%clk 1:29:28]} 10. O-O {[%clk
1:19:38]} 10... Bxb1 {[%clk 1:29:08]} 11. Rxb1 {[%clk 1:18:18]} 11... Nxc3
{[%clk 1:29:31]} 12. Qc2 {[%clk 1:18:24]} 12... Nxb1 {[%clk 1:29:27]} 13. Qxb1
{[%clk 1:18:46]} 13... Qxb4 {[%clk 1:27:12]} 14. Qc2 {[%clk 1:17:54]} 14... e6
{[%clk 1:25:28]} 15. a3 {[%clk 1:17:54]} 15... Qc5 {[%clk 1:25:42]} 16. Qb3
{[%clk 1:18:15]} 16... Qb6 {[%clk 1:20:48]} 17. Qc3 {[%clk 1:18:37]} 17... Qa5
{[%clk 1:12:19]} 18. Qb3 {[%clk 1:12:46]} 18... O-O-O {[%clk 1:06:11]} 19. Bg5
{[%clk 1:12:36]} 19... Qxa3 {[%clk 1:01:33]} 20. Qb5 {[%clk 1:12:04]} 20... f6
{[%clk 0:54:25]} 21. Rb1 {[%clk 1:10:29]} 21... Bb4 {[%clk 0:53:42]} 22. Bc1
{[%clk 1:09:43]} 22... Qa6 {[%clk 0:51:36]} 23. Qxa6 {[%clk 1:09:42]} 23... bxa6
{[%clk 0:52:02]} 24. Bxa6+ {[%clk 1:10:08]} 24... Kc7 {[%clk 0:52:14]} 25. Be3
{[%clk 1:10:06]} 25... Rd6 {[%clk 0:51:17]} 26. h3 {[%clk 1:09:36]} 26... Rhd8
{[%clk 0:50:29]} 27. Kh2 {[%clk 1:09:31]} 27... Rd1 {[%clk 0:50:23]} 28. Rb2
{[%clk 1:09:27]} 28... Ra1 {[%clk 0:50:15]} 29. Bb5 {[%clk 1:09:49]} 29... Rb8
{[%clk 0:50:28]} 30. Bxc6 {[%clk 1:09:51]} 30... Bd6+ {[%clk 0:50:50]} 31. g3
{[%clk 1:10:17]} 31... Rxb2 {[%clk 0:51:09]} 32. Be4 {[%clk 1:10:45]} 32... f5
{[%clk 0:51:27]} 0-1

[Variant "Standard"]
[Site "Europe Echecs"]

[Event "Championnat du monde jeunes U10"]
[Date "2024.11.26"]
[White "Akramov, Khusan"]
[Black "Gusev, Daniil Den"]
[WhiteElo "1782"]
[BlackElo "1863"]
[Round "11.17"]
[Result "0-1"]
[TimeControl "5400+30"]

1. e4 {[%clk 1:30:57]} 1... c5 {[%clk 1:30:55]} 2. Nf3 {[%clk 1:31:24]} 2... a6
{[%clk 1:31:22]} 3. c4 {[%clk 1:31:44]} 3... e6 {[%clk 1:31:37]} 4. d4 {[%clk
1:31:43]} 4... cxd4 {[%clk 1:32:04]} 5. Nxd4 {[%clk 1:32:09]} 5... Nf6 {[%clk
1:32:15]} 6. Nc3 {[%clk 1:32:34]} 6... Qc7 {[%clk 1:32:40]} 7. Be3 {[%clk
1:32:33]} 7... b6 {[%clk 1:31:35]} 8. Be2 {[%clk 1:32:49]} 8... Bb7 {[%clk
1:32:01]} 9. f3 {[%clk 1:32:25]} 9... Bd6 {[%clk 1:28:56]} 10. g3 {[%clk
1:29:03]} 10... h5 {[%clk 1:26:27]} 11. a3 {[%clk 1:28:55]} 11... Be7 {[%clk
1:25:19]} 12. O-O {[%clk 1:25:38]} 12... h4 {[%clk 1:24:13]} 13. Bf2 {[%clk
1:24:49]} 13... hxg3 {[%clk 1:22:07]} 14. Bxg3 {[%clk 1:25:13]} 14... Bd6 {[%clk
1:21:20]} 15. Kg2 {[%clk 1:22:05]} 15... Bxg3 {[%clk 1:17:58]} 16. hxg3 {[%clk
1:22:28]} 16... Nc6 {[%clk 1:17:41]} 17. b4 {[%clk 1:20:03]} 17... Ne5 {[%clk
1:08:49]} 18. Rc1 {[%clk 1:20:12]} 18... Ng6 {[%clk 1:06:01]} 19. c5 {[%clk
1:18:44]} 19... Nh5 {[%clk 0:43:36]} 20. Qe1 {[%clk 1:18:55]} 20... Nhf4+ {[%clk
0:43:46]} 21. gxf4 {[%clk 1:17:49]} 21... Nxf4+ {[%clk 0:44:12]} 22. Kg1 {[%clk
1:16:48]} 22... Qe5 {[%clk 0:44:25]} 23. Qd2 {[%clk 1:16:36]} 23... Qg5+ {[%clk
0:44:14]} 24. Kf2 {[%clk 1:16:55]} 24... Rh2+ {[%clk 0:44:22]} 25. Ke3 {[%clk
1:16:50]} 25... Qh6 {[%clk 0:42:13]} 26. Rcd1 {[%clk 1:12:24]} 26... Nxe2+
{[%clk 0:40:23]} 27. f4 {[%clk 1:11:49]} 27... Nxf4 {[%clk 0:40:45]} 28. Nf5
{[%clk 1:11:45]} 28... Nd5+ {[%clk 0:40:44]} 29. Kf3 {[%clk 1:11:57]} 29... Qh3+
{[%clk 0:39:34]} 30. Ng3 {[%clk 1:11:48]} 30... Rxd2 {[%clk 0:39:58]} 31. Rxd2
{[%clk 1:12:13]} 31... Nxc3 0-1

[Variant "Standard"]
[Site "Europe Echecs"]